{"text_format":"1","workbook":"xlsx","n_sheets":3,"sheets":["MAIN","Feuil1","DATA ELV"],"not_rendered":{"charts":0,"images":11,"macros":1,"external_links":0,"defined_names":54,"comments":0,"pivot_tables":0},"unopened":[],"bounds":{"document_bytes":16777216,"sheet_cells":100000,"rows_first":2000,"rows_last":500,"rows_between":2000,"halvings":0,"cell_chars":16384,"cell_head_chars":4096},"cells_cut":0,"cells_raw":0,"read":"whole","date_system":"1900"}

{"sheet":"MAIN","index":0,"n_rows":14,"n_cols":1,"rows_kept":14,"cut":false,"hidden":false,"merged":[[0,0,0,4],[1,0,1,4],[4,0,5,0],[8,0,9,0]]}
["الجمهورية الجزائرية الديمقراطية الشعبية"]
["وزارة التربية الوطنية"]
[]
["المديرية ........."]
["مديرية التربية لولاية تلمسان"]
[]
[]
["المؤسسة :"]
["ثانوية الخوارزمي - مغنية"]
["المؤسسة........"]
[]
["حرر بـ :"]
["مغنية في"]
["2022/2021"]

{"sheet":"Feuil1","index":1,"n_rows":89,"n_cols":26,"rows_kept":89,"cut":false,"hidden":false,"merged":[]}
[]
[]
[null,null,null,null,null,null,null,"الحجم الساعي اليــــــومي"]
[null,"ترقيم تلقائي","الأقسام",null,"اسم الأستاذ","التخصص",null,"الأيـــــــام ","سنة أولى ","سنة ثانية ","سنة ثالثة","عدد الحصص المبرمجة","عدد الأساتذة العاملين"]
[null,1,"3ت ر/هك",null,"ديب فاطمة","رياضيات",null,null,null,null,null,null,null,null,null,null,"الأقسام ","المواد","الجنس","الصفة ","ملاحظات","تبرير الغياب","الأيام ","الشـــعب","السنوات","الصفة"]
[null,2,"3ت ر/هم",null,"بوعريشة الهام","رياضيات",null,"الأحد",73,49,50,172,33,null,"س1",null,"3ت ر/هم","رياضيات","ذكر","D1","نصف داخلي ذكر","ندوة خارجية","الأحد","تقني رياضي هندسة مدنية ","الأولى ","نصف داخلي  "]
[null,3,"3ت إ01",null,"مدوخ فاطمة الزهراء","رياضيات",null,"الإثنين",67,60,46,173,41,null,"س2",null,"3ت ر/هك","فيزياء","أنثى","D2","نصف داخلي أنثى ","إضراب","الإثنين","تقني رياضي هندسة كهربائية ","الثانية ","خارجي  "]
[null,4,"3ع ت01",null,"بونخالة أسماء","رياضيات",null,"الثلاثاء",71,47,43,161,36,null,"س3",null,"3ت ر/ه طرائق","علوم ط",null,"E1","خارجي ذكر","وفاة أحد الأقارب","الثلاثاء","تقني رياضي هندسة ميكانيكية ","الثالثة"]
[null,5,"3ع ت02",null,"مالو ياسمينة","رياضيات",null,"الأربعاء",55,56,52,163,37,null,"س1/2",null,"3ت ر/ه ميكا","أدب عربي",null,"E2","خارجي أنثى ","اجتماع ","الأربعاء","تقني رياضي هندسة الطرائق"]
[null,6,"3أ ف01",null,"قوراري أحمد","فيزياء",null,"الخميس",62,43,54,159,35,null,"س1/3",null,"3ع ت01","لغة فرنسية ",null,null,null,"شهادة طبية ","الخميس","علـــــوم تجريبيــة "]
[null,7,"3أ ف02",null,"زيرار سميرة","فيزياء",null,null,null,null,null,null,null,null,"س3/2",null,"3ع ت02","لغة إنجليزية ",null,null,null,"طلب غياب",null,"تسييـــر و إقتصــــــاد"]
[null,8,"3لغات /إسبا",null,"عشماوي فؤاد","فيزياء",null,null,null,null,null,null,null,null,null,null,"3ع ت03","إسبانية ",null,null,null,"بترخيص",null,"أداب و فلســــفة "]
[null,9,"2ت ر/هك",null,"ناضور محمد","فيزياء",null,null,"أشهر السنة ",null,null,null,null,null,null,null,"3ع ت04","إجتماعيات",null,null,null,"مسابقة ترقية",null,"لغـــات أجنبيــــة ألمانية"]
[null,10,"2ت ر/هم",null,"الوزان توفيق","فيزياء",null,null,"سبتمبر  2021",null,null,null,null,null,null,null,"3ع ت05","فلسفة",null,null,null,"مرض الابن",null,"لغات أجنبية إيطالية "]
[null,11,"2ت إ01",null,"درني اسماعيل","علوم ط",null,null,"أكتوبر  2021",null,null,null,null,null,null,null,"3ع ت06","معلوماتية ",null,null,null,"لجنة تثبيت",null,"لغـــات أجنبيـة إسبانيــة "]
[null,12,"2ع ت01",null,"لعشب آمنة","علوم ط",null,null,"نوفمبر  2021",null,null,null,null,null,"رقم القسم",null,"3ع ت07","تكنولوجيا",null,null,null,"مرض ",null,"جدع مشترك علوم و تكنولوجيا "]
[null,13,"2ع ت02",null,"براهمي عبد الباقي","علوم ط",null,null,"ديسمبر  2021",null,null,null,null,null,1,null,"3ع ت08","رياضة بدنية ",null,null,null,"عطلة مرضية",null,"جـــدع مشتـــرك أداب"]
[null,14,"2أ ف01",null,"هرواط سارة","علوم ط",null,null,"جانفي  2022",null,null,null,null,null,2,null,"3ت إ01","إقتصاد",null,null,null,"عطلة أمومة"]
[null,15,"2أ ف02",null,"حاسي بن عودة","ع,إسلامية",null,null,"فبراير 2021",null,null,null,null,null,3,null,"3ت إ02","ع,إسلامية"]
[null,16,"2لغات /إسبا",null,"بوحاجب واسيني","ع,إسلامية",null,null,"مارس 2021",null,null,null,null,null,4,null,"3ت إ03"]
[null,17,"ج م ع تك01",null,"صبيان فاطمة","أدب عربي",null,null,"أبريل 2021",null,null,null,null,null,5,null,"3ت إ04"]
[null,18,"ج م ع تك02",null,"صبيان سمية","أدب عربي",null,null,"ماي 2021",null,null,null,null,null,6,null,"3أ ف01"]
[null,19,"ج م ع تك03",null,"أوزين ليلى","أدب عربي",null,null,"جوان 2021",null,null,null,null,null,7,null,"3أ ف02"]
[null,20,"ج م ع تك04",null,"معروف علي","أدب عربي",null,null,null,null,null,null,null,null,8,null,"3أ ف03"]
[null,21,"ج م ع تك05",null,"عيساوي آمنة","أدب عربي",null,null,null,null,null,null,null,null,9,null,"3أ ف04"]
[null,22,"ج م أ01",null,"شيخ ياسين","فلسفة",null,null,null,null,null,null,null,null,10,null,"3أ ف05"]
[null,23,"ج م أ02",null,"بلحاج منير","فلسفة",null,null,null,null,null,null,null,null,11,null,"3لغات"]
[null,null,null,null,"آجد سليمة","إجتماعيات",null,null,null,null,null,null,null,null,12,null,"3لغات /إسبا"]
[null,"",null,null,"قان محمد شهر الدين","إجتماعيات",null,null,null,null,null,null,null,null,13,null,"3لغات /ألما"]
[null,"",null,null,"موس محمد","إجتماعيات",null,null,null,null,null,null,null,null,14,null,"3لغات /إيطا"]
[null,"",null,null,"بودربالة ع القادر","إجتماعيات",null,null,null,null,null,null,null,null,15,null,"2ت ر/هم"]
[null,"",null,null,"عباد أسماء","لغة فرنسية ",null,null,null,null,null,null,null,null,null,null,"2ت ر/هك"]
[null,"",null,null,"كوليلي وفاء","لغة فرنسية ",null,null,null,null,null,null,null,null,null,null,"2ت ر/ه طرائق"]
[null,"",null,null,"رابحي ايمان","لغة فرنسية ",null,null,null,null,null,null,null,null,null,null,"2ت ر/ه ميكا"]
[null,"",null,null,"بومانة هداية","لغة فرنسية ",null,null,null,null,null,null,null,null,null,null,"2ع ت01"]
[null,"",null,null,"معزوز مليكة","لغة إنجليزية ",null,null,null,null,null,null,null,null,null,null,"2ع ت02"]
[null,"",null,null,"شنتوف سليمة","لغة إنجليزية ",null,null,null,null,null,null,null,null,null,null,"2ع ت03"]
[null,"",null,null,"مزاري سهام","لغة إنجليزية ",null,null,null,null,null,null,null,null,null,null,"2ع ت04"]
[null,"",null,null,"العرباوي حياة","لغة إنجليزية ",null,null,null,null,null,null,null,null,null,null,"2ع ت05"]
[null,"",null,null,"سفاني حياة","إسبانية ",null,null,null,null,null,null,null,null,null,null,"2ع ت06"]
[null,"",null,null,"دلافي أحمد","تكنولوجيا",null,null,null,null,null,null,null,null,null,null,"2ع ت07"]
[null,"",null,null,"جبور صافية","إقتصاد",null,null,null,null,null,null,null,null,null,null,"2ع ت08"]
[null,"",null,null,"بوحميدي ايمان","إقتصاد",null,null,null,null,null,null,null,null,null,null,"2ت إ01"]
[null,"",null,null,"عشي زهير","تكنولوجيا",null,null,null,null,null,null,null,null,null,null,"2ت إ02"]
[null,"",null,null,"زار مصطفى","تكنولوجيا",null,null,null,null,null,null,null,null,null,null,"2ت إ03"]
[null,"",null,null,"أبرور عبد المجيد","رياضة بدنية ",null,null,null,null,null,null,null,null,null,null,"2ت إ04"]
[null,"",null,null,"لقبوري مصطفى","رياضة بدنية ",null,null,null,null,null,null,null,null,null,null,"2أ ف01"]
[null,"",null,null,"تربش مصطفى","رياضة بدنية ",null,null,null,null,null,null,null,null,null,null,"2أ ف02"]
[null,"",null,null,null,null,null,null,null,null,null,null,null,null,null,null,"2أ ف03"]
[null,"",null,null,null,null,null,null,null,null,null,null,null,null,null,null,"2أ ف04"]
[null,"",null,null,null,null,null,null,null,null,null,null,null,null,null,null,"2أ ف05"]
[null,"",null,null,null,null,null,null,null,null,null,null,null,null,null,null,"2لغات"]
[null,"",null,null,null,null,null,null,null,null,null,null,null,null,null,null,"2لغات /إسبا"]
[null,"",null,null,null,null,null,null,null,null,null,null,null,null,null,null,"2لغات /ألما"]
[null,"",null,null,null,null,null,null,null,null,null,null,null,null,null,null,"2لغات /إيطا"]
[null,"",null,null,null,null,null,null,null,null,null,null,null,null,null,null,"ج م ع تك01"]
[null,"",null,null,null,null,null,null,null,null,null,null,null,null,null,null,"ج م ع تك02"]
[null,"",null,null,null,null,null,null,null,null,null,null,null,null,null,null,"ج م ع تك03"]
[null,"",null,null,null,null,null,null,null,null,null,null,null,null,null,null,"ج م ع تك04"]
[null,"",null,null,null,null,null,null,null,null,null,null,null,null,null,null,"ج م ع تك05"]
[null,"",null,null,null,null,null,null,null,null,null,null,null,null,null,null,"ج م ع تك06"]
[null,"",null,null,null,null,null,null,null,null,null,null,null,null,null,null,"ج م ع تك07"]
[null,"",null,null,null,null,null,null,null,null,null,null,null,null,null,null,"ج م ع تك08"]
[null,"",null,null,null,null,null,null,null,null,null,null,null,null,null,null,"ج م ع تك09"]
[null,"",null,null,null,null,null,null,null,null,null,null,null,null,null,null,"ج م ع تك10"]
[null,"",null,null,null,null,null,null,null,null,null,null,null,null,null,null,"ج م ع تك11"]
[null,"",null,null,null,null,null,null,null,null,null,null,null,null,null,null,"ج م أ01"]
[null,"",null,null,null,null,null,null,null,null,null,null,null,null,null,null,"ج م أ02"]
[null,"",null,null,null,null,null,null,null,null,null,null,null,null,null,null,"ج م أ03"]
[null,"",null,null,null,null,null,null,null,null,null,null,null,null,null,null,"ج م أ04"]
[null,"",null,null,null,null,null,null,null,null,null,null,null,null,null,null,"ج م أ05"]
[null,null,null,null,null,null,null,null,null,null,null,null,null,null,null,null,"ج م أ06"]
[null,null,null,null,null,null,null,null,null,null,null,null,null,null,null,null,"ج م أ07"]
[null,null,null,null,null,null,null,null,null,null,null,null,null,null,null,null,"ج م أ08"]
[null,null,null,null,null,null,null,null,null,null,null,null,null,null,null,null,"ج م أ09"]
[null,null,null,null,null,null,null,null,null,null,null,null,null,null,null,null,"ج م أ10"]
[]
[]
[]
[]
[]
[]
[]
[]
[]
[]
[]
[]
[null,null,null,null,"الحجم الساعي"]

{"sheet":"DATA ELV","index":2,"n_rows":290,"n_cols":25,"rows_kept":290,"cut":false,"hidden":false,"merged":[[1,1,1,2],[8,2,8,3],[9,2,9,3],[11,2,11,3],[3,5,3,7],[4,5,4,7],[5,5,5,7],[6,5,6,7],[7,5,7,7],[8,5,8,7],[3,2,3,3],[4,2,4,3],[5,2,5,3],[6,2,6,3],[7,2,7,3],[9,5,9,7],[9,8,9,9],[3,10,3,13],[4,10,4,13],[5,10,5,13],[6,10,6,13],[7,10,7,13],[8,10,8,13],[9,10,9,13],[3,8,3,9],[4,8,4,9],[5,8,5,9],[6,8,6,9],[7,8,7,9],[8,8,8,9]]}
[null,null,null,null,null,null,null,null,null,null,null,null,null,null,null,null,null,null,"الاسم","الصف"]
[null,"الفضيل ريم",null,null,null,null,null,null,null,null,null,null,null,null,null,null,null,null,"الفضيل ريم",{"$f":"MATCH(S2,B:B,0)","v":2},null,null,null,null,"بن طيب ياسين"]
[]
[null,"رقم التعريف المدرسي :",null,null,"القسم المختصر : ",null,null,null,"اسم الولي :"]
[null,"اللقب :",null,null,"الإعادة : ",null,null,null,"العنوان :"]
[null,"الإسم :",null,null,"السنة :",null,null,null,"الاسم و اللقب باللاتينية :"]
[null,"الجنس",null,null,"الشعبة :",null,null,null,"تاريخ الدخول :"]
[null,"تاريخ الازدياد :",null,null,"رقم القسم : ",null,null,null,"تاريخ الخروج :"]
[null,"مكان الازدياد : ",null,null,"رقم القيد :",null,null,null,"الدخول  :"]
[null,"الصفة : ",null,null,"الصفة : ",null,null,null,"الخروج : "]
[]
[]
[]
[]
["الرقم","الاسم و اللقب كاملا","رقم التعريف المدرسي","اللقب","الاسم","الجنس","تاريخ الازدياد","مكان الازدياد","الصفة ","القسم المختصر","الإعـــــــــــــــــــــــــــــادة","السنة ","الشعبة","رقم القسم","رقم القيد","الصفة","اسم الولي","العنوان ","الاسم و اللقب بالكتابة اللاتينية","تاريخ الدخول","تاريخ الخروج","دخول ","خروج"]
[1,{"$f":"D16 & \" \" & E16","v":"كمال أسامة"},1000513270043200,"كمال","أسامة","ذكر","2005-02-20","مغنية","نصف داخلي","3ت ر/هم",null,"ثالثة","تقني رياضي هندسة مدنية",1,1,"D1","بوستين محمد ","أولاد الشارف مغنية ","Belkheir Hafsa"]
[2,{"$f":"D17 & \" \" & E17","v":"سعيد مروة"},1100513270010900,"سعيد","مروة","أنثى","2005-01-11","مغنية","خارجي","3ت ر/هم",null,"ثالثة","تقني رياضي هندسة مدنية",1,2,"E2","سفيون جمال ","شارع 05 رقم 42 حي العربي بن مهيدي ","Fedouha Ilhem"]
[3,"أحمد آية",1100313270092300,"أحمد","آية","أنثى","2003-05-08","مغنية","نصف داخلي","3ت ر/هم",null,"ثالثة","تقني رياضي هندسة مدنية",1,3,"E2","قرد حمدون ","قرية البطيم مغنية ","Bin seghir Hussam Mohammed Adnan  "]
[4,"رضا خديجة",1100413270287700,"رضا","خديجة","أنثى","2004-10-20","مغنية","خارجي","3ت ر/هك",null,"ثالثة","تقني رياضي هندسة كهربائية",1,18,"E2","زياني الأول عبد القادر ","قرية العقيد لطفي مغنية ","Chellali Mohammad Amine"]
[5,"سليم شيماء",1100313270033000,"سليم","شيماء","أنثى","2003-02-10","مغنية","خارجي","3ت ر/هك",null,"ثالثة","تقني رياضي هندسة كهربائية",1,19,"E2","سايح سيد أحمد ","حي أولاد بن دامو ","Lakhdar Marwa"]
[6,"أبو علاء الدين",1000213270295000,"أبو","علاء الدين","ذكر","2002-12-25","مغنية",null,"3ت ر/هك",null,null,null,null,20,"E1","قنشي عبد الرزاق ","حي الشهداء ","Ben Ljube chanteuse Amina"]
[7,"الفضيل ريم",1100413270069100,"الفضيل","ريم","أنثى","2004-03-23","مغنية","نصف داخلي","3ت إ01",null,"ثالثة","تسيير واقتصاد ",1,21,"D2","الفضيل نور الدين ","أولاد قدور الكبار ","Cheikh Abdullah"]
[8,"أدم ياسين",1000413270333600,"أدم","ياسين","ذكر","2004-12-04","مغنية","نصف داخلي","3ت إ01",null,"ثالثة","تسيير واقتصاد ",1,22,"D1","بن طيب نور الدين ","03 شارع العقيد لطفي مغنية ","Abbasi Mohammad Amine"]
[9,"أشرف أحمد",1000413270312400,"أشرف","أحمد","ذكر","2004-11-13","مغنية","نصف داخلي","3ت إ01",null,"ثالثة","تسيير واقتصاد ",1,23,"D1","بوبندير بوفلجة ","قرية البطيم مغنية "," Khalid  Kenza"]
[10,"اسلام وئيل",1000213270035000,"اسلام","وئيل","ذكر","2002-02-20","مغنية","خارجي","3ع ت01",null,"ثالثة","علوم تجريبية ",1,90,"E1","مقداد عبد القادر ","قرية العقيد عباس مغنية ","Ben Elias Hrat"]
[11,"محمد عبد المالك",1000413270046500,"محمد","عبد المالك","ذكر","2004-11-09","مغنية","خارجي","3ع ت01",null,"ثالثة","علوم تجريبية ",1,91,"E1","منيري حمزة ","إقامة تافنة حي بلال عمارة أ 5 طابق 4 مغنية ","Mamouri émigre Juma"]
[12,"رؤوف قصي",1000313270210200,"رؤوف","قصي","ذكر","2003-09-09","مغنية","نصف داخلي","3ع ت01",null,"ثالثة","علوم تجريبية ",1,92,"D1","مهنان الحاج ","قرية البطيم مغنية ","Mansour bin Mohammed Amin"]
[13,"سعيد وائل",1000213270245200,"سعيد","وائل","ذكر","2002-11-01","مغنية","خارجي","3ع ت01",null,"ثالثة","علوم تجريبية ",1,93,"E1","نواوي بن اعمر ","قرية البطيم مغنية ","Joubert Mohammed"]
[14,"جابر وليد",1000413270272900,"جابر","وليد","ذكر","2004-10-06","مغنية","نصف داخلي","3ع ت02",null,"ثالثة","علوم تجريبية ",2,94,"D1","أمحمدي حبيب ","أولاد قدور لكبار مغنية ","Ayad prosternant Maram"]
[15,"الطاهر نادية",1100413270204300,"الطاهر","نادية","أنثى","2004-07-31","مغنية","نصف داخلي","3ع ت02",null,"ثالثة","علوم تجريبية ",2,95,"D2","العرابي نور الدين ","اولاد الشارف ","Shaima turc"]
[16,"هاشمي علاء الدين",1000413300000500,"هاشمي","علاء الدين","ذكر","2004-01-01","مغنية","نصف داخلي","3ع ت02",null,"ثالثة","علوم تجريبية ",2,96,"D1","اوراغي عبد الهادي ","اربوز-بلدية مسيردة الفواقة ","Ben Allal Marwa"]
[17,"محمزد سعاد رانية",1100413270151900,"محمزد","سعاد رانية","أنثى","2004-06-22","مغنية","نصف داخلي","3ع ت02",null,"ثالثة","علوم تجريبية ",2,97,"D2","بلطرش عبد القادر ","أولاد الشارف مغنية ","Bouchikhi Halima"]
[18,"طالب وسام",1100329060268000,"طالب","وسام","أنثى","2003-11-20","تيغنيف","خارجي","3أ ف01",null,"ثالثة","آداب وفلسفة ",1,147,"E2","بوطيش هواري ","دوار المطابيش ","Port hammadi"]
[19,"حمادة فاطمة",1100213270206900,"حمادة","فاطمة","أنثى","2002-09-19","مغنية","خارجي","3أ ف01",null,"ثالثة","آداب وفلسفة ",1,148,"E2","شياخ محمد ثاني ","درب 01 رقم 23 حي بلال  مغنية ","Abdel Azim Omhamdi Bouziane"]
[20,"أشرف محمد يوسف",null,"أشرف","محمد يوسف",null,"2000-01-24","مغنية",null,"3أ ف01",null,"ثالثة","آداب وفلسفة ",1,149,"E1","قبلي محمد ","رقم71 حي الشهداء مغنية "]
[21,"أكرم حواء",1100413270552600,"أكرم","حواء","أنثى","2004-08-14","تلمسان","خارجي","3أ ف01",null,"ثالثة","آداب وفلسفة ",1,150,"E2","مبيتيل أمحمد واسيني ","منزل 05 حي المذبحة ","Majokha Hamid Islam"]
[22,"أمين سعدية",1100413270220200,"أمين","سعدية","أنثى","2004-08-14","مغنية","نصف داخلي","3أ ف02",null,"ثالثة","آداب وفلسفة ",2,151,"D2","أمبارك عبد النبي ","قرية العقيد لطفي مغنية ","Mhiaoa Ismail"]
[23,"باشا آية دعاء",1100413270004200,"باشا","آية دعاء","أنثى","2004-01-06","مغنية","نصف داخلي","3أ ف02",null,"ثالثة","آداب وفلسفة ",2,152,"D2","امبارك هواري ","قرية العقيد عباس مغنية تلمسان ","Tamazidh Muhammad Islam"]
[24,"لؤي معاد",1000513270044700,"لؤي","معاد","ذكر","2005-02-21","مغنية","خارجي","3لغات /إسبا",null,"ثالثة","لغات أجنبية إسبانية",1,197,"E1","صدار رشيد ","شارع 2 رقم 12 حي الشهداء مغنية ","Zakaria m'a jeté"]
[25,"أبو أحمد فاطمة سناء",1100413270242700,"أبو أحمد","فاطمة سناء","أنثى","2004-09-06","مغنية","خارجي","3لغات /إسبا",null,"ثالثة","لغات أجنبية إسبانية",1,198,"D2","غربي عمر ","رقم 57 حي الشهداء مغنية ","Ben Salem Hagar"]
[26,"مسلم أيوب",1000313270127100,"مسلم","أيوب","ذكر","2003-11-15","مغنية","خارجي","3لغات /إسبا",null,"ثالثة","لغات أجنبية إسبانية",1,199,"D1","قطي واسيني ","قرية العقيد عباس مغنية ","Amhamdi Noor Huda"]
[27,"أب سعيد ليلى",1100513270108400,"أب سعيد","ليلى","أنثى","2005-05-10","مغنية","نصف داخلي","2ت ر/هم",null,"ثانية","تقني رياضي هندسة مدنية",1,200,"D2","أمبارك نعيمي ","قرية العقيد عباس مغنية ","Mujahid harmonie"]
[28,"علي وداد",1100313270128600,"علي","وداد","أنثى","2003-06-17","مغنية","نصف داخلي","2ت ر/هم",null,"ثانية","تقني رياضي هندسة مدنية",1,201,"D2","العابد بن اعمر ","قرية البطيم مغنية ","chanteur Hawwalv Rmisae"]
[29,"إبراهيم  رجاء",1100513270133200,"إبراهيم ","رجاء","أنثى","2005-06-01","مغنية","نصف داخلي","2ت ر/هم",null,"ثانية","تقني رياضي هندسة مدنية",1,202,"D2","براهمي واسيني ","أولاد الشارف - مغنية - ","Cheikh Hanan"]
[30,"طارق محمد وليد",1000246010161000,"طارق","محمد وليد","ذكر","2002-07-13","عين تموشنت","خارجي","2ت ر/هم",null,"ثانية","تقني رياضي هندسة مدنية",1,203,"D1","جباري ",null,"Boghalah Mohammed Walid"]
[31,"عبد القادر محمد ياسين",1000513270140100,"عبد القادر","محمد ياسين","ذكر","2005-06-06","مغنية","خارجي","2ت ر/هك",null,"ثانية","تقني رياضي هندسة كهربائية",1,221,"E1","شبورو سعيد ","حمام بوغرارة ","Ramadan Mohammed Naji"]
[32,"ياسر مهدي",1000522010131700,"ياسر","مهدي","ذكر","2005-03-10","سيدي بلعباس","خارجي","2ت ر/هك",null,"ثانية","تقني رياضي هندسة كهربائية",1,222,"E1","صوفي بن عمر ","حي 60مسكن مكمن بن عمار ","Razzie Hamed"]
[33,"امين نوال",1100313270050300,"امين","نوال","أنثى","2003-12-17","مغنية","نصف داخلي","2ت إ01",null,"ثانية","تسيير واقتصاد ",1,223,"D2","أمبارك واسيني ","قرية اولاد قدور الكبار مغنية ","Gzadra Wafa"]
[34,"محمد عبد الجليل",1000413270055400,"محمد","عبد الجليل","ذكر","2004-03-06","مغنية","نصف داخلي","2ت إ01",null,"ثانية","تسيير واقتصاد ",1,224,"D1","الحامدي ميلود ","قرية أولاد قدور - مغنية -  ","Munawar Ahmed"]
[35,"قادري أسماء لينة",1100513270224800,"قادري","أسماء لينة","أنثى","2005-08-07","مغنية","خارجي","2ع ت01",null,"ثانية","علوم تجريبية ",1,289,"E2","قادري فؤاد ","34 حي الشهداء - مغنية -  ","Moulay Bodechala Wadud"]
[36,"علي عبد الإله",1000613270023000,"علي","عبد الإله","ذكر","2006-01-25","مغنية","خارجي","2ع ت01",null,"ثانية","علوم تجريبية ",1,290,"E1","لعلام رشيد ","حي الشهداء ","Toxicité des Demandeurs"]
[37,"بطرس محمد أمين",1000513270546900,"بطرس","محمد أمين","ذكر","2005-04-30","مغنية","نصف داخلي","2ع ت02",null,"ثانية","علوم تجريبية ",2,291,"D1","أمبارك بوشارب  ","قرية العقيد عباس - مغنية -  ","Hanan Bouzar"]
[38,"غالي محمد",1000513270291000,"غالي","محمد","ذكر","2005-10-02","مغنية","نصف داخلي","2ع ت02",null,"ثانية","علوم تجريبية ",2,292,"D1","الفضيل مصطفى ","قرية العقيد عباس -  مغنية -  ","Brahmi Bovljh"]
[39,"سيدهم آمنة",1100413270028900,"سيدهم","آمنة","أنثى","2004-02-02","مغنية","نصف داخلي","2ع ت02",null,"ثانية","علوم تجريبية ",2,293,"D2","بختاوي بومدين ","قرية البطيم ","soumis Romesh"]
[40,"خليل علاء الدين",1000413270208500,"خليل","علاء الدين","ذكر","2004-08-03","مغنية","خارجي","2أ ف01",null,"ثانية","آداب وفلسفة ",1,371,"E1","مخوخي نور الدين ","سيدي مجاهد 13044 ","Embarek Ibrahim"]
[41,"عمر لطيفة",1100513270121000,"عمر","لطيفة","أنثى","2005-05-22","مغنية","خارجي","2أ ف01",null,"ثانية","آداب وفلسفة ",1,372,"E2","مدغاري فتحي ","حي الشهداء ","bayoudh Marwa"]
[42,"حامد فاطمة الزهراء",1100613270100300,"حامد","فاطمة الزهراء","أنثى","2006-04-29","مغنية","نصف داخلي","2أ ف02",null,"ثانية","آداب وفلسفة ",2,373,"D2","أحمودي عكاشة ","قرية العقيد لطفي ","Abadra Rania"]
[43,"هشام فاطنة",1100513270176900,"هشام","فاطنة","أنثى","2005-07-01","مغنية","نصف داخلي","2أ ف02",null,"ثانية","آداب وفلسفة ",2,374,"D2","أمبارك بلخير ","قرية العقيد عباس مغنية ","Abdul Malik Mohammed Amin"]
[44,"محمود عبد العزيز",1000513270170300,"محمود","عبد العزيز","ذكر","2005-06-26","مغنية","نصف داخلي","2أ ف02",null,"ثانية","آداب وفلسفة ",2,375,"D1","امبارك رشيد محمد ","قرية العقيد لطفي ","auréole houari"]
[45,"أشرف هالة",1100513270306200,"أشرف","هالة","أنثى","2005-10-16","مغنية","نصف داخلي","2لغات /إسبا",null,"ثانية","لغات أجنبية إسبانية",1,420,"D2","هواري عبد المومن ","مزرعة شعبان حمدوت - مغنية - ","Khalad Youssef"]
[46,"أسعد رانية",1100513270322900,"أسعد","رانية","أنثى","2005-11-02","مغنية","نصف داخلي","2لغات /إسبا",null,"ثانية","لغات أجنبية إسبانية",1,421,"D2","يبدري محمد ","قرية العقيد عباس - مغنية -  ","Xenon Ismail"]
[47,"أبو الفضل دعاء",1100613270196100,"أبو الفضل","دعاء","أنثى","2006-07-15","مغنية","نصف داخلي","ج م ع تك01",null,"أولى","جدع مشترك علوم وتكنولوجيا ",1,429,"D2","الفضيل أعمر ","حي الحمري مغنية ","Tara Kawthar"]
[48,"برهان ياسر",1000613270355800,"برهان","ياسر","ذكر","2006-12-02","مغنية","نصف داخلي","ج م ع تك01",null,"أولى","جدع مشترك علوم وتكنولوجيا ",1,430,"D1","الفضيل ميلود ","قرية العقيد عباس مغنية ","S'il vous plaît Bouchareb"]
[49,"طالب امين",1000413270070400,"طالب","امين","ذكر","2004-03-26","مغنية","خارجي","ج م ع تك02",null,"أولى","جدع مشترك علوم وتكنولوجيا ",2,495,"E1","زبالح محمد ","قرية العقيد عباس - مغنية -  ","Khadija, consultez"]
[50,"عبد الله محمد",1000613270218000,"عبد الله","محمد","ذكر","2006-08-02","مغنية","خارجي","ج م ع تك02",null,"أولى","جدع مشترك علوم وتكنولوجيا ",2,496,"E1","موقاس حسين ","رقم 99 حي الشهداء- مغنية -  ","Embarek Laila"]
[51,"هدي آية",1100613270225800,"هدي","آية","أنثى","2006-08-11","مغنية","خارجي","ج م ع تك02",null,"أولى","جدع مشترك علوم وتكنولوجيا ",2,497,"E2","هواري محمد ","رقم 54 شارع محطة القطار - مغنية - ","Zhzouh Yahya"]
[52,"خاد فتيحة",1100613270228800,"خاد","فتيحة","أنثى","2006-08-12","مغنية","نصف داخلي","ج م ع تك03",null,"أولى","جدع مشترك علوم وتكنولوجيا ",3,498,"D2","أمبارك امحمد ","قرية البطيم-مغنية- ","parcimonieuse Hisham"]
[53,"أنور ملاك",1100613270193300,"أنور","ملاك","أنثى","2006-07-13","مغنية","نصف داخلي","ج م ع تك03",null,"أولى","جدع مشترك علوم وتكنولوجيا ",3,499,"D2","الحر حسين ","اولاد معيدر ","S'il vous plaît Brahmi"]
[54,"البشير اسحاق عزام",1000613010747300,"البشير","اسحاق عزام","ذكر","2006-10-01","تلمسان","خارجي","ج م ع تك04",null,"أولى","جدع مشترك علوم وتكنولوجيا ",4,566,"E1","لصحف عبد المجيد ","شارع 27 حي الشهداء - مغنية - ","Hanan féroce"]
[55,"الطيب يوسف هبري",1000713270061000,"الطيب","يوسف هبري","ذكر","2007-03-10","مغنية","خارجي","ج م ع تك04",null,"أولى","جدع مشترك علوم وتكنولوجيا ",4,567,"E1","مرغاد عبد الرزاق ","شارع س رقم 06 حي الشهداء - مغنية -  ","Benhamou Manal Ange"]
[56,"وليد سفيان",1000613270654100,"وليد","سفيان","ذكر","2006-05-09","مغنية","خارجي","ج م ع تك04",null,"أولى","جدع مشترك علوم وتكنولوجيا ",4,568,"E1","نوضاري عبد القادر ","قرية العقيد عباس - مغنية -  ","Boumnijel Nabil"]
[57,"علي أسية",1100613270361300,"علي","أسية","أنثى","2006-12-10","مغنية","نصف داخلي","ج م ع تك05",null,"أولى","جدع مشترك علوم وتكنولوجيا ",5,569,"D2","أمبارك هواري ","قرية البطيم مغنية ","oestrus Amal"]
[58,"علي أميمة",1100413270301900,"علي","أميمة","أنثى","2004-11-02","مغنية","نصف داخلي","ج م ع تك05",null,"أولى","جدع مشترك علوم وتكنولوجيا ",5,570,"D2","أمبارك محمد ","التلالسة قرية البطيم ","Katti Ayoub"]
[59,"أيمن حامد إسلام",1000413270058700,"أيمن","حامد إسلام","ذكر","2004-10-26","مغنية","خارجي","ج م أ01",null,"أولى","جدع مشترك آداب  ",1,651,"E1","مخوخي ",null,"Bobandir Maysa"]
[60,"منصور محمد نجيب",1000313270133100,"منصور","محمد نجيب","ذكر","2003-06-23","مغنية","خارجي","ج م أ01",null,"أولى","جدع مشترك آداب  ",1,652,"E1","منصوري عبد الفتاح ","شارع 13 منزل 14 حي المقراني ","Fadhil Reem"]
[61,"أحمد عمر",1000413270320000,"أحمد","عمر","ذكر","2004-11-21","مغنية","نصف داخلي","ج م أ02",null,"أولى","جدع مشترك آداب  ",2,653,"D1","أمبارك محمد ","قرية البطيم مغنية ","Shibani Samir"]
[62,"الشيخ عبد الله",1000613270134000,"الشيخ","عبد الله","ذكر","2006-05-30","مغنية","نصف داخلي","ج م أ02",null,"أولى","جدع مشترك آداب  ",2,654,"D1","الشيخ محمد ","قرية البطيم-مغنية- ","Sarah Jrarfawi"]
[63,"العربي دريس",1000313270053500,"العربي","دريس","ذكر","2003-03-09","مغنية","نصف داخلي","ج م أ02",null,"أولى","جدع مشترك آداب  ",2,655,"D1","العربي جمال ","دوار المخاليف - مغنية -  ","fée Broan"]
[64," ",null,null,null,null,null,null,null,null,null,null,null,null,null,null,null,null,null,null,"Dechasa Zuhair"]
[65," ",null,null,null,null,null,null,null,null,null,null,null,null,null,null,null,null,null,null,"Ben Azzouz Salah al-Din"]
[66,{"$f":"D81 & \" \" & E81","v":" "},null,null,null,null,null,null,null,null,null,null,null,null,null,null,null,null,null,null,"vie Zygoda"]
[67," ",null,null,null,null,null,null,null,null,null,null,null,null,null,null,null,null,null,null,"Zine El Abidine Fatna"]
[68," ",null,null,null,null,null,null,null,null,null,null,null,null,null,null,null,null,null,null,"Boumediene Mourad"]
[69," ",null,null,null,null,null,null,null,null,null,null,null,null,null,null,null,null,null,null,"Bushra bordem"]
[70," ",null,null,null,null,null,null,null,null,null,null,null,null,null,null,null,null,null,null,"Pour Hsaina Farouk"]
[71," ",null,null,null,null,null,null,null,null,null,null,null,null,null,null,null,null,null,null,"Ben Djilali Manal"]
[72," ",null,null,null,null,null,null,null,null,null,null,null,null,null,null,null,null,null,null,"Bltrh Rania Souad"]
[73," ",null,null,null,null,null,null,null,null,null,null,null,null,null,null,null,null,null,null,"Orabi Nadia"]
[74," ",null,null,null,null,null,null,null,null,null,null,null,null,null,null,null,null,null,null,"Inde chaouch"]
[75," ",null,null,null,null,null,null,null,null,null,null,null,null,null,null,null,null,null,null,"Zhzouh Fatima Zahra"]
[76," ",null,null,null,null,null,null,null,null,null,null,null,null,null,null,null,null,null,null,"Shabib prière Nourhanne"]
[77," ",null,null,null,null,null,null,null,null,null,null,null,null,null,null,null,null,null,null,"Une transe Shaima"]
[78," ",null,null,null,null,null,null,null,null,null,null,null,null,null,null,null,null,null,null,"Dit Zirie"]
[79," "]
[80," "]
[81," "]
[82," "]
[83," "]
[84," "]
[85," "]
[86," "]
[87," "]
[88," "]
[89," "]
[90," "]
[91," "]
[92," "]
[93," "]
[94," "]
[95," "]
[96," "]
[97," "]
[98," "]
[99," "]
[100," "]
[101," "]
[102," "]
[103," "]
[104,"أوحساين  مجاهد",124520355000,"أوحساين ","مجاهد","ذكر","1970-12-23","الكاف","نصف داخلي  ","ج م ع تك01",null,"الأولى ","جدع مشترك علوم و تكنولوجيا ",1,2125,"D1","قدور","سيدي مجاهد "]
[105," "]
[106," "]
[107," "]
[108," "]
[109," "]
[110," "]
[111," "]
[null,null,null,null,null,null,null,null,null,null,null,null,null,null,null,null,null,null," "]
[null,null,null,null,null,null,null,null,null,null,null,null,null,null,null,null,null,null," "]
[null,null,null,null,null,null,null,null,null,null,null,null,null,null,null,null,null,null," "]
[null,null,null,null,null,null,null,null,null,null,null,null,null,null,null,null,null,null," "]
[null,null,null,null,null,null,null,null,null,null,null,null,null,null,null,null,null,null," "]
[null,null,null,null,null,null,null,null,null,null,null,null,null,null,null,null,null,null," "]
[null,null,null,null,null,null,null,null,null,null,null,null,null,null,null,null,null,null," "]
[null,null,null,null,null,null,null,null,null,null,null,null,null,null,null,null,null,null," "]
[null,null,null,null,null,null,null,null,null,null,null,null,null,null,null,null,null,null," "]
[null,null,null,null,null,null,null,null,null,null,null,null,null,null,null,null,null,null," "]
[null,null,null,null,null,null,null,null,null,null,null,null,null,null,null,null,null,null," "]
[null,null,null,null,null,null,null,null,null,null,null,null,null,null,null,null,null,null," "]
[null,null,null,null,null,null,null,null,null,null,null,null,null,null,null,null,null,null," "]
[null,null,null,null,null,null,null,null,null,null,null,null,null,null,null,null,null,null," "]
[null,null,null,null,null,null,null,null,null,null,null,null,null,null,null,null,null,null," "]
[null,null,null,null,null,null,null,null,null,null,null,null,null,null,null,null,null,null," "]
[null,null,null,null,null,null,null,null,null,null,null,null,null,null,null,null,null,null," "]
[null,null,null,null,null,null,null,null,null,null,null,null,null,null,null,null,null,null," "]
[null,null,null,null,null,null,null,null,null,null,null,null,null,null,null,null,null,null," "]
[null,null,null,null,null,null,null,null,null,null,null,null,null,null,null,null,null,null," "]
[null,null,null,null,null,null,null,null,null,null,null,null,null,null,null,null,null,null," "]
[null,null,null,null,null,null,null,null,null,null,null,null,null,null,null,null,null,null," "]
[null,null,null,null,null,null,null,null,null,null,null,null,null,null,null,null,null,null," "]
[null,null,null,null,null,null,null,null,null,null,null,null,null,null,null,null,null,null," "]
[null,null,null,null,null,null,null,null,null,null,null,null,null,null,null,null,null,null," "]
[null,null,null,null,null,null,null,null,null,null,null,null,null,null,null,null,null,null," "]
[null,null,null,null,null,null,null,null,null,null,null,null,null,null,null,null,null,null," "]
[null,null,null,null,null,null,null,null,null,null,null,null,null,null,null,null,null,null," "]
[null,null,null,null,null,null,null,null,null,null,null,null,null,null,null,null,null,null," "]
[null,null,null,null,null,null,null,null,null,null,null,null,null,null,null,null,null,null," "]
[null,null,null,null,null,null,null,null,null,null,null,null,null,null,null,null,null,null," "]
[null,null,null,null,null,null,null,null,null,null,null,null,null,null,null,null,null,null," "]
[null,null,null,null,null,null,null,null,null,null,null,null,null,null,null,null,null,null," "]
[null,null,null,null,null,null,null,null,null,null,null,null,null,null,null,null,null,null," "]
[null,null,null,null,null,null,null,null,null,null,null,null,null,null,null,null,null,null," "]
[null,null,null,null,null,null,null,null,null,null,null,null,null,null,null,null,null,null," "]
[null,null,null,null,null,null,null,null,null,null,null,null,null,null,null,null,null,null," "]
[null,null,null,null,null,null,null,null,null,null,null,null,null,null,null,null,null,null," "]
[null,null,null,null,null,null,null,null,null,null,null,null,null,null,null,null,null,null," "]
[null,null,null,null,null,null,null,null,null,null,null,null,null,null,null,null,null,null," "]
[null,null,null,null,null,null,null,null,null,null,null,null,null,null,null,null,null,null," "]
[null,null,null,null,null,null,null,null,null,null,null,null,null,null,null,null,null,null," "]
[null,null,null,null,null,null,null,null,null,null,null,null,null,null,null,null,null,null," "]
[null,null,null,null,null,null,null,null,null,null,null,null,null,null,null,null,null,null," "]
[null,null,null,null,null,null,null,null,null,null,null,null,null,null,null,null,null,null," "]
[null,null,null,null,null,null,null,null,null,null,null,null,null,null,null,null,null,null," "]
[null,null,null,null,null,null,null,null,null,null,null,null,null,null,null,null,null,null," "]
[null,null,null,null,null,null,null,null,null,null,null,null,null,null,null,null,null,null," "]
[null,null,null,null,null,null,null,null,null,null,null,null,null,null,null,null,null,null," "]
[null,null,null,null,null,null,null,null,null,null,null,null,null,null,null,null,null,null," "]
[null,null,null,null,null,null,null,null,null,null,null,null,null,null,null,null,null,null," "]
[null,null,null,null,null,null,null,null,null,null,null,null,null,null,null,null,null,null," "]
[null,null,null,null,null,null,null,null,null,null,null,null,null,null,null,null,null,null," "]
[null,null,null,null,null,null,null,null,null,null,null,null,null,null,null,null,null,null," "]
[null,null,null,null,null,null,null,null,null,null,null,null,null,null,null,null,null,null," "]
[null,null,null,null,null,null,null,null,null,null,null,null,null,null,null,null,null,null," "]
[null,null,null,null,null,null,null,null,null,null,null,null,null,null,null,null,null,null," "]
[null,null,null,null,null,null,null,null,null,null,null,null,null,null,null,null,null,null," "]
[null,null,null,null,null,null,null,null,null,null,null,null,null,null,null,null,null,null," "]
[null,null,null,null,null,null,null,null,null,null,null,null,null,null,null,null,null,null," "]
[null,null,null,null,null,null,null,null,null,null,null,null,null,null,null,null,null,null," "]
[null,null,null,null,null,null,null,null,null,null,null,null,null,null,null,null,null,null," "]
[null,null,null,null,null,null,null,null,null,null,null,null,null,null,null,null,null,null," "]
[null,null,null,null,null,null,null,null,null,null,null,null,null,null,null,null,null,null," "]
[null,null,null,null,null,null,null,null,null,null,null,null,null,null,null,null,null,null," "]
[null,null,null,null,null,null,null,null,null,null,null,null,null,null,null,null,null,null," "]
[null,null,null,null,null,null,null,null,null,null,null,null,null,null,null,null,null,null," "]
[null,null,null,null,null,null,null,null,null,null,null,null,null,null,null,null,null,null," "]
[null,null,null,null,null,null,null,null,null,null,null,null,null,null,null,null,null,null," "]
[null,null,null,null,null,null,null,null,null,null,null,null,null,null,null,null,null,null," "]
[null,null,null,null,null,null,null,null,null,null,null,null,null,null,null,null,null,null," "]
[null,null,null,null,null,null,null,null,null,null,null,null,null,null,null,null,null,null," "]
[null,null,null,null,null,null,null,null,null,null,null,null,null,null,null,null,null,null," "]
[null,null,null,null,null,null,null,null,null,null,null,null,null,null,null,null,null,null," "]
[null,null,null,null,null,null,null,null,null,null,null,null,null,null,null,null,null,null," "]
[null,null,null,null,null,null,null,null,null,null,null,null,null,null,null,null,null,null," "]
[null,null,null,null,null,null,null,null,null,null,null,null,null,null,null,null,null,null," "]
[null,null,null,null,null,null,null,null,null,null,null,null,null,null,null,null,null,null," "]
[null,null,null,null,null,null,null,null,null,null,null,null,null,null,null,null,null,null," "]
[null,null,null,null,null,null,null,null,null,null,null,null,null,null,null,null,null,null," "]
[null,null,null,null,null,null,null,null,null,null,null,null,null,null,null,null,null,null," "]
[null,null,null,null,null,null,null,null,null,null,null,null,null,null,null,null,null,null," "]
[null,null,null,null,null,null,null,null,null,null,null,null,null,null,null,null,null,null," "]
[null,null,null,null,null,null,null,null,null,null,null,null,null,null,null,null,null,null," "]
[null,null,null,null,null,null,null,null,null,null,null,null,null,null,null,null,null,null," "]
[null,null,null,null,null,null,null,null,null,null,null,null,null,null,null,null,null,null," "]
[null,null,null,null,null,null,null,null,null,null,null,null,null,null,null,null,null,null," "]
[null,null,null,null,null,null,null,null,null,null,null,null,null,null,null,null,null,null," "]
[null,null,null,null,null,null,null,null,null,null,null,null,null,null,null,null,null,null," "]
[null,null,null,null,null,null,null,null,null,null,null,null,null,null,null,null,null,null," "]
[null,null,null,null,null,null,null,null,null,null,null,null,null,null,null,null,null,null," "]
[null,null,null,null,null,null,null,null,null,null,null,null,null,null,null,null,null,null," "]
[null,null,null,null,null,null,null,null,null,null,null,null,null,null,null,null,null,null," "]
[null,null,null,null,null,null,null,null,null,null,null,null,null,null,null,null,null,null," "]
[null,null,null,null,null,null,null,null,null,null,null,null,null,null,null,null,null,null," "]
[null,null,null,null,null,null,null,null,null,null,null,null,null,null,null,null,null,null," "]
[null,null,null,null,null,null,null,null,null,null,null,null,null,null,null,null,null,null," "]
[null,null,null,null,null,null,null,null,null,null,null,null,null,null,null,null,null,null," "]
[null,null,null,null,null,null,null,null,null,null,null,null,null,null,null,null,null,null," "]
[null,null,null,null,null,null,null,null,null,null,null,null,null,null,null,null,null,null," "]
[null,null,null,null,null,null,null,null,null,null,null,null,null,null,null,null,null,null," "]
[null,null,null,null,null,null,null,null,null,null,null,null,null,null,null,null,null,null," "]
[null,null,null,null,null,null,null,null,null,null,null,null,null,null,null,null,null,null," "]
[null,null,null,null,null,null,null,null,null,null,null,null,null,null,null,null,null,null," "]
[null,null,null,null,null,null,null,null,null,null,null,null,null,null,null,null,null,null," "]
[null,null,null,null,null,null,null,null,null,null,null,null,null,null,null,null,null,null," "]
[null,null,null,null,null,null,null,null,null,null,null,null,null,null,null,null,null,null," "]
[null,null,null,null,null,null,null,null,null,null,null,null,null,null,null,null,null,null," "]
[null,null,null,null,null,null,null,null,null,null,null,null,null,null,null,null,null,null," "]
[null,null,null,null,null,null,null,null,null,null,null,null,null,null,null,null,null,null," "]
[null,null,null,null,null,null,null,null,null,null,null,null,null,null,null,null,null,null," "]
[null,null,null,null,null,null,null,null,null,null,null,null,null,null,null,null,null,null," "]
[null,null,null,null,null,null,null,null,null,null,null,null,null,null,null,null,null,null," "]
[null,null,null,null,null,null,null,null,null,null,null,null,null,null,null,null,null,null," "]
[null,null,null,null,null,null,null,null,null,null,null,null,null,null,null,null,null,null," "]
[null,null,null,null,null,null,null,null,null,null,null,null,null,null,null,null,null,null," "]
[null,null,null,null,null,null,null,null,null,null,null,null,null,null,null,null,null,null," "]
[null,null,null,null,null,null,null,null,null,null,null,null,null,null,null,null,null,null," "]
[null,null,null,null,null,null,null,null,null,null,null,null,null,null,null,null,null,null," "]
[null,null,null,null,null,null,null,null,null,null,null,null,null,null,null,null,null,null," "]
[null,null,null,null,null,null,null,null,null,null,null,null,null,null,null,null,null,null," "]
[null,null,null,null,null,null,null,null,null,null,null,null,null,null,null,null,null,null," "]
[null,null,null,null,null,null,null,null,null,null,null,null,null,null,null,null,null,null," "]
[null,null,null,null,null,null,null,null,null,null,null,null,null,null,null,null,null,null," "]
[null,null,null,null,null,null,null,null,null,null,null,null,null,null,null,null,null,null," "]
[null,null,null,null,null,null,null,null,null,null,null,null,null,null,null,null,null,null," "]
[null,null,null,null,null,null,null,null,null,null,null,null,null,null,null,null,null,null," "]
[null,null,null,null,null,null,null,null,null,null,null,null,null,null,null,null,null,null," "]
[null,null,null,null,null,null,null,null,null,null,null,null,null,null,null,null,null,null," "]
[null,null,null,null,null,null,null,null,null,null,null,null,null,null,null,null,null,null," "]
[null,null,null,null,null,null,null,null,null,null,null,null,null,null,null,null,null,null," "]
[null,null,null,null,null,null,null,null,null,null,null,null,null,null,null,null,null,null," "]
[null,null,null,null,null,null,null,null,null,null,null,null,null,null,null,null,null,null," "]
[null,null,null,null,null,null,null,null,null,null,null,null,null,null,null,null,null,null," "]
[null,null,null,null,null,null,null,null,null,null,null,null,null,null,null,null,null,null," "]
[null,null,null,null,null,null,null,null,null,null,null,null,null,null,null,null,null,null," "]
[null,null,null,null,null,null,null,null,null,null,null,null,null,null,null,null,null,null," "]
[null,null,null,null,null,null,null,null,null,null,null,null,null,null,null,null,null,null," "]
[null,null,null,null,null,null,null,null,null,null,null,null,null,null,null,null,null,null," "]
[null,null,null,null,null,null,null,null,null,null,null,null,null,null,null,null,null,null," "]
[null,null,null,null,null,null,null,null,null,null,null,null,null,null,null,null,null,null," "]
[null,null,null,null,null,null,null,null,null,null,null,null,null,null,null,null,null,null," "]
[null,null,null,null,null,null,null,null,null,null,null,null,null,null,null,null,null,null," "]
[null,null,null,null,null,null,null,null,null,null,null,null,null,null,null,null,null,null," "]
[null,null,null,null,null,null,null,null,null,null,null,null,null,null,null,null,null,null," "]
[null,null,null,null,null,null,null,null,null,null,null,null,null,null,null,null,null,null," "]
[null,null,null,null,null,null,null,null,null,null,null,null,null,null,null,null,null,null," "]
[null,null,null,null,null,null,null,null,null,null,null,null,null,null,null,null,null,null," "]
[null,null,null,null,null,null,null,null,null,null,null,null,null,null,null,null,null,null," "]
[null,null,null,null,null,null,null,null,null,null,null,null,null,null,null,null,null,null," "]
[null,null,null,null,null,null,null,null,null,null,null,null,null,null,null,null,null,null," "]
[null,null,null,null,null,null,null,null,null,null,null,null,null,null,null,null,null,null," "]
[null,null,null,null,null,null,null,null,null,null,null,null,null,null,null,null,null,null," "]
[null,null,null,null,null,null,null,null,null,null,null,null,null,null,null,null,null,null," "]
[null,null,null,null,null,null,null,null,null,null,null,null,null,null,null,null,null,null," "]
[null,null,null,null,null,null,null,null,null,null,null,null,null,null,null,null,null,null," "]
[null,null,null,null,null,null,null,null,null,null,null,null,null,null,null,null,null,null," "]
[null,null,null,null,null,null,null,null,null,null,null,null,null,null,null,null,null,null," "]
[null,null,null,null,null,null,null,null,null,null,null,null,null,null,null,null,null,null," "]
[null,null,null,null,null,null,null,null,null,null,null,null,null,null,null,null,null,null," "]
[null,null,null,null,null,null,null,null,null,null,null,null,null,null,null,null,null,null," "]
[null,null,null,null,null,null,null,null,null,null,null,null,null,null,null,null,null,null," "]
[null,null,null,null,null,null,null,null,null,null,null,null,null,null,null,null,null,null," "]
[null,null,null,null,null,null,null,null,null,null,null,null,null,null,null,null,null,null," "]